Cogmind - Beta 14 @@@ ROGUE MODE // 2024.11.29 @ 13:29:02 Player: MEOWRTGM Result: Destroyed by Y-64 Sentinel with Wave Gun Performance ------------- Evolutions (5) 2500 Regions Visited (9) 1800 Robots Destroyed (117) 585 Value Destroyed (4819) 4819 Prototype IDs (10) 200 Alien Tech Used (0) 0 Bonus (1914) 1914 TOTAL SCORE: 11818 Bonus ------- High Alert Combat Kills 1339 Follower Combat Kills 313 Registered with UFD 300 Friendly Fire -38 Cogmind --------- Core Integrity 0/1000 Matter 205/300 Energy 0/100 System Corruption 25% Temperature Cool (9) Movement Core (50) Location -5/Upper Caves Parts ------- > --- POWER (1) -------- (None) > --- PROPULSION (4) --- (None) > --- UTILITY (9) ------ Cloaking Device > --- WEAPON (3) ------- (None) > --- INVENTORY (5) ---- Improved Deuterium Engine Improved Deuterium Engine Improved Medium Treads Compact Matter Pod (0) Mini Grenade Launcher Peak State ------------ > --- POWER ------------ Cooled Ion Engine > --- PROPULSION ------- Armored Medium Treads Heavy Treads Carbon-fiber Leg > --- UTILITY ---------- Improved Heat Sink Huge Storage Unit Advanced Sensor Array Advanced Targeting Computer Advanced Targeting Computer Improved Target Analyzer Improved Kinecellerator Weapon Cycler Improved Medium Armor Plating > --- WEAPON ----------- Tesla Rifle Tesla Rifle Flak Gun > --- INVENTORY -------- Improved Deuterium Engine Improved Deuterium Engine Improved Deuterium Engine Angular Momentum Engine Light Fission Core Micro Fission Core Carbon-fiber Leg Compact Matter Pod Mini Grenade Launcher Improved Grenade Launcher [Rating: 77] Favorites ----------- Power Light Nuclear Core Engine Angular Momentum Engine Power Core Light Nuclear Core Propulsion Advanced Treads Treads Advanced Treads Leg Carbon-fiber Leg Wheel Compact Wheel Utility Huge Storage Unit Device Advanced Sensor Array Storage Huge Storage Unit Processor Advanced Targeting Computer Protection Hardened Heavy Armor Plating Weapon Gauss Rifle Energy Gun Tesla Rifle Ballistic Gun Gauss Rifle Ballistic Cannon Light Cannon Build | -11 -10 -9 -8 -8 -8 -8 -6 -5 -5 ------- Run | Yrd Mat Mat Mat Sto Rec Scr Fac Fac Upp Slots Evolved 10 | . . 2 2 . . . 4 2 . Power . | . . . . . . . . . . Propulsion 2 | . . 1 1 . . . . . . Utility 7 | . . 1 1 . . . 3 2 . Weapon 1 | . . . . . . . 1 . . Parts Attached 110 | 6 1 21 16 13 . 4 12 35 2 Power 12 | 1 . 5 . 1 . . 2 3 . Engine 9 | 1 . 4 . . . . 2 2 . Core 3 | . . 1 . 1 . . . 1 . Reactor . | . . . . . . . . . . Propulsion 36 | 2 . 5 7 8 . 2 3 8 1 Treads 18 | . . 3 . 6 . 2 3 3 1 Leg 14 | . . 1 6 2 . . . 5 . Wheel 4 | 2 . 1 1 . . . . . . Hover . | . . . . . . . . . . Flight . | . . . . . . . . . . Utility 31 | 1 . 4 4 1 . . 5 15 1 Device 13 | . . . . . . . 3 9 1 Storage 3 | 1 . 2 . . . . . . . Processor 6 | . . 1 3 . . . . 2 . Hackware . | . . . . . . . . . . Protection 9 | . . 1 1 1 . . 2 4 . Artifact . | . . . . . . . . . . Weapon 31 | 2 1 7 5 3 . 2 2 9 . Energy Gun 2 | . . . . . . . . 2 . Energy Cannon . | . . . . . . . . . . Ballistic Gun 28 | 2 . 7 5 3 . 2 2 7 . Ballistic Cannon 1 | . 1 . . . . . . . . Launcher . | . . . . . . . . . . Special Weapon . | . . . . . . . . . . Impact Weapon . | . . . . . . . . . . Slashing Weapon . | . . . . . . . . . . Piercing Weapon . | . . . . . . . . . . Special Melee Weapon . | . . . . . . . . . . Unidentified Prototypes 4 | . . . . 2 . . . 2 . Parts Lost 57 | . 5 6 4 6 . . 3 33 . Power 6 | . 1 2 . 1 . . . 2 . Propulsion 19 | . 2 2 2 4 . . 1 8 . Utility 17 | . . . . 1 . . 1 15 . Weapon 15 | . 2 2 2 . . . 1 8 . Highest Loss Streak 12 | . 3 6 2 6 . . 2 12 . To Critical Strikes 2 | . . . 1 . . . . 1 . Average Slot Usage (%) 81 | . 74 68 88 82 89 81 85 85 5 Engine 3 | . 13 8 9 1 . . 5 3 . Core 4 | . . . . 6 9 9 . 1 . Treads 22 | . . 10 1 22 36 36 25 16 . Leg 4 | . . 4 30 7 . . . 2 . Wheel 1 | . 22 3 1 . . . . . . Device 5 | . . . . . . . 13 20 5 Storage 7 | . 14 10 9 9 9 9 6 4 . Processor 8 | . . 8 10 9 9 9 6 9 . Protection 7 | . . 3 8 8 9 9 6 6 . Ballistic Gun 15 | . 16 20 17 18 17 9 19 14 . Peak Build Rating 77 | 6 6 13 37 40 40 41 62 77 16 Average Rating 40 | 4 5 8 27 35 39 35 60 65 6 On Entrance 23 | . 6 1 13 37 40 32 41 60 6 Naked Turns 9 | . . 6 . . . . . 3 . Heaviest Build 153 | 10 12 92 115 115 112 111 149 153 1 Greatest Support 97 | 32 32 20 50 86 86 86 94 97 3 Greatest Overweight (x) 26 | . 1 26 9 2 1 1 1 3 . Average Overweight (x) 1 | . . 3 2 1 1 1 1 1 . Largest Inventory Capacity 25 | 8 8 25 25 25 25 25 25 25 5 Average Capacity 23 | 6 8 17 25 25 25 25 25 24 5 Most Carried 25 | 2 4 12 23 25 25 25 22 23 5 Average Carried 18 | . 2 4 14 22 23 21 20 17 4 Final Capacity 25 | 8 8 25 25 25 25 25 25 5 5 Final Carried 25 | 2 3 12 23 24 25 22 19 5 5 Class Distribution -------------------- 38% | Commander-Mutant 18% | Scavenger-Mutant 13% | Mutant 9% | Commander-Gunner 6% | Scavenger-Gunner 5% | Gunner 5% | Tank Dominant Class ---------------- Mutant | -10/Materials Scavenger-Mutant | -9/Materials Scavenger-Mutant | -8/Materials Commander-Mutant | -8/Storage Commander-Mutant | -8/Recycling Commander-Mutant | -8/Scraptown Commander-Gunner | -6/Factory Scavenger-Gunner | -5/Factory Mutant | -5/Upper Caves Resources | -11 -10 -9 -8 -8 -8 -8 -6 -5 -5 ----------- Run | Yrd Mat Mat Mat Sto Rec Scr Fac Fac Upp Matter Collected 4025 | 209 146 449 466 384 72 38 408 1853 . Remotely 304 | . . . . . . . . 304 . Salvage Created 4795 | . 210 506 793 507 . . 612 2167 . Parts 251 | . 12 45 40 31 . . 26 97 . Haulers Intercepted 1 | . 1 . . . . . . . . Recyclers Shooed 5 | . . . . . . . . 5 . Parts Field Recycled . | . . . . . . . . . . Retrieved Matter . | . . . . . . . . . . Parts Self-Destructed . | . . . . . . . . . . Prevented . | . . . . . . . . . . Kills | -11 -10 -9 -8 -8 -8 -8 -6 -5 -5 ------- Run | Yrd Mat Mat Mat Sto Rec Scr Fac Fac Upp Combat Hostiles Destroyed 97 | . 6 15 12 10 . . 8 46 . Guns 92 | . 4 15 12 10 . . 8 43 . Cannons 2 | . 2 . . . . . . . . AOE 3 | . . . . . . . . 3 . Classes Destroyed 15 | . 3 2 3 1 . . 2 4 . Worker 4 | . . . . 2 . . . 2 . Builder 3 | . . . . . . . . 3 . Hauler 1 | . 1 . . . . . . . . Recycler 6 | . . . 1 1 . . 1 3 . Mechanic 1 | . . . 1 . . . . . . Operator 1 | . . . . . . . . 1 . Watcher 4 | . . 3 . . . . . 1 . Swarmer 23 | . 3 8 . 4 . . . 8 . Grunt 35 | . 3 4 6 5 . . 4 13 . Brawler 3 | . . . . . . . . 3 . Duelist 3 | . . . . . . . 1 2 . Sentry 11 | . . 3 5 1 . . . 2 . Hunter 7 | . . . 1 . . . 2 4 . Programmer 14 | . . . . . . . . 14 . Heavy 1 | . . . . . . . 1 . . Best Kill Streak 11 | . 2 4 3 5 . . 3 11 . Combat Bots Only 7 | . 2 4 3 5 . . 3 7 . Max Kills in Single Turn 3 | . 1 1 2 1 . . 1 3 . Gunslinging 1 | . . . . . . . . 1 . Exploded 2 | . . . . . . . . 2 . Melee . | . . . . . . . . . . Uniques/NPCs Destroyed . | . . . . . . . . . . Combat | -11 -10 -9 -8 -8 -8 -8 -6 -5 -5 -------- Run | Yrd Mat Mat Mat Sto Rec Scr Fac Fac Upp Hostile Shots Fired 930 | . 50 107 85 84 2 . 72 520 10 Missed 222 | . 17 29 16 9 1 . 15 134 1 Damage Taken 11873 | . 464 971 1128 981 18 . 1502 6590 219 Core 1722 | . 115 321 90 113 . . 81 811 191 Absorbed by Shields 986 | . . . . . . . . 986 . Redirected to Shielding 7 | . . 2 5 . . . . . . Ignored by Resistances 471 | . . . . . . . . 471 . Regen/Repaired (Parts) 41 | . . . 38 . . . 3 . . Core Remaining (%) 65 | 100 54 19 . . . 63 90 . . Volleys Fired 374 | . 27 74 50 46 4 . 33 140 . Largest 3 | . 2 2 2 2 2 . 3 3 . Hottest 158 | . 55 43 56 56 53 . 76 158 . Shots Fired 806 | . 45 131 100 71 10 . 78 371 . Gun 788 | . 27 131 100 71 10 . 78 371 . Cannon 18 | . 18 . . . . . . . . Launcher . | . . . . . . . . . . Special . | . . . . . . . . . . Kinetic 786 | . 45 131 100 71 10 . 78 351 . Thermal . | . . . . . . . . . . Explosive . | . . . . . . . . . . Electromagnetic 20 | . . . . . . . . 20 . Robot Hit Streak 30 | . 4 22 22 7 13 . 25 30 . Robot Miss Streak 8 | . 5 5 2 8 1 . 2 7 . Penetration Max 1 | . . . 1 1 . . . 1 . Secondary Targets 11 | . . 1 . . . . 1 9 . Max Gunslinging Chain 1 | . . 1 . . . . 1 1 . Shots Hit Robots 629 | . 24 98 79 32 8 . 60 328 . Core Hits 529 | . 12 36 38 21 2 . 24 396 . Critical Kills 2 | . . . 1 1 . . . . . Critical Parts Destroyed 4 | . . 2 1 1 . . . . . Critical Strikes 8 | . . 2 2 2 . . . 2 . Destroy 6 | . . 2 2 2 . . . . . Corrupt 2 | . . . . . . . . 2 . Melee Attacks . | . . . . . . . . . . Impact . | . . . . . . . . . . Slashing . | . . . . . . . . . . Piercing . | . . . . . . . . . . Sneak Attacks . | . . . . . . . . . . Combat Hostiles . | . . . . . . . . . . Follow-up Attacks . | . . . . . . . . . . Damage Inflicted 12577 | . 298 1036 957 807 154 . 983 8342 . Guns 11423 | . 93 1036 957 807 154 . 983 7393 . Cannons 205 | . 205 . . . . . . . . Explosions 935 | . . . . . . . . 935 . Melee . | . . . . . . . . . . Ramming 14 | . . . . . . . . 14 . Kinetic 11181 | . 298 1036 957 807 154 . 983 6946 . Thermal 186 | . . . . . . . . 186 . Explosive 749 | . . . . . . . . 749 . Electromagnetic 447 | . . . . . . . . 447 . Impact . | . . . . . . . . . . Slashing . | . . . . . . . . . . Piercing . | . . . . . . . . . . Highest Corruption 25 | . 1 . . 2 2 . 1 25 25 Average Corruption 4 | . 1 . . 1 2 . 1 7 25 Corruption Purged . | . . . . . . . . . . Corruption Blocked . | . . . . . . . . . . Effects 87 | . . . . 10 21 . 6 35 15 Message Errors 25 | . . . . 1 8 . 3 8 5 Matter Fused 16 | . . . . 1 4 . 2 6 3 Heat Flow Errors 13 | . . . . 5 . . 1 6 1 Energy Discharges 6 | . . . . . 2 . . 3 1 Parts Rejected 1 | . . . . 1 . . . . . Parts Fused 2 | . . . . 1 1 . . . . Data Loss (minor) 7 | . . . . 1 3 . . 1 2 Data Loss (major) 2 | . . . . . 1 . . 1 . Misfires 7 | . . . . . 2 . . 5 . Misdirections 5 | . . . . . . . . 2 3 Weapon Failures 3 | . . . . . . . . 3 . Overload Shots . | . . . . . . . . . . Overflow Damage 210 | . . . . . . . . 210 . Projectiles . | . . . . . . . . . . Explosions 210 | . . . . . . . . 210 . Melee . | . . . . . . . . . . Knockbacks 6 | . 6 . . . . . . . . Impact . | . . . . . . . . . . Kinetic 4 | . 4 . . . . . . . . Secondary 2 | . 2 . . . . . . . . Self-Inflicted Damage . | . . . . . . . . . . Shots . | . . . . . . . . . . Rammed 3 | . . . . . . . . 3 . Targets Rammed 3 | . . . . . . . . 3 . Kicked . | . . . . . . . . . . Crushed . | . . . . . . . . . . Highest Temperature 487 | . 55 12 111 487 24 . 159 427 89 Average Temperature 110 | . 20 4 25 172 14 . 76 127 49 Received Heat Transfer 2837 | . 162 261 477 495 . . 279 1127 36 Effects 17 | . . . . 9 . . . 8 . Shutdowns 3 | . . . . 2 . . . 1 . Energy Bleed 2 | . . . . . . . . 2 . Interference 10 | . . . . 6 . . . 4 . Matter Decay 1 | . . . . . . . . 1 . Damage (minor) 1 | . . . . 1 . . . . . Siege Activations . | . . . . . . . . . . Robots Corrupted . | . . . . . . . . . . Combat Hostiles . | . . . . . . . . . . Parts Fried . | . . . . . . . . . . Impact Corruptions . | . . . . . . . . . . Robots Melted . | . . . . . . . . . . Combat Hostiles . | . . . . . . . . . . Parts Melted 1 | . . . . . . . 1 . . Heat Transferred 100 | . . . . . . . . 100 . Parts Sabotaged . | . . . . . . . . . . Parts Stolen . | . . . . . . . . . . Parts Stripped . | . . . . . . . . . . Power Chain Reactions . | . . . . . . . . . . Alert | -11 -10 -9 -8 -8 -8 -8 -6 -5 -5 ------- Run | Yrd Mat Mat Mat Sto Rec Scr Fac Fac Upp Peak Influence 1303 | . 168 252 256 577 191 . 86 1303 . Initial 177 | . . 57 38 63 177 . . 36 . Average 257 | . 90 120 99 214 60 . 16 825 . Maximum Alert Level 4 | . . 1 1 2 . . . 4 . Low Security (%) 75 | 100 100 91 93 51 100 . 100 23 . Level 1 4 | . . 8 6 26 . . . . . Level 2 3 | . . . . 22 . . . 3 . Level 3 5 | . . . . . . . . 25 . Level 4 10 | . . . . . . . . 46 . Level 5 . | . . . . . . . . . . High Security . | . . . . . . . . . . Max Security . | . . . . . . . . . . Squads Dispatched 18 | . 1 1 . 3 . . 3 10 . Investigation 3 | . . . . 3 . . . . . Extermination 7 | . . . . . . . 2 5 . Reinforcement 5 | . 1 1 . . . . 1 2 . Assault 3 | . . . . . . . . 3 . Garrison . | . . . . . . . . . . Intercept . | . . . . . . . . . . Searches Triggered . | . . . . . . . . . . Construction Impeded 1 | . . . . . . . . 1 . Haulers Reinforced 1 | . . . . . . . . 1 . Active Scanning Responses . | . . . . . . . . . . Cargo Convoy Interrupts . | . . . . . . . . . . Stealth | -11 -10 -9 -8 -8 -8 -8 -6 -5 -5 --------- Run | Yrd Mat Mat Mat Sto Rec Scr Fac Fac Upp Distress Signals 9 | . 3 2 1 1 . . 1 1 . Communications Jammed . | . . . . . . . . . . Distress Signals . | . . . . . . . . . . Times Spotted 175 | . 12 29 17 12 4 . 15 85 1 Peak Tracking Total 12 | . 3 9 4 6 1 . 3 12 1 Tactical Retreats 13 | . . 1 1 . . . 1 10 . Traps | -11 -10 -9 -8 -8 -8 -8 -6 -5 -5 ------- Run | Yrd Mat Mat Mat Sto Rec Scr Fac Fac Upp Traps Triggered 7 | . 1 2 1 1 . . 1 1 . Indirectly . | . . . . . . . . . . Trap Hack Attempts . | . . . . . . . . . . Triggered . | . . . . . . . . . . Disarmed . | . . . . . . . . . . Reprogrammed . | . . . . . . . . . . Reused . | . . . . . . . . . . Traps Extracted . | . . . . . . . . . . Installed . | . . . . . . . . . . Triggered . | . . . . . . . . . . Machines | -11 -10 -9 -8 -8 -8 -8 -6 -5 -5 ---------- Run | Yrd Mat Mat Mat Sto Rec Scr Fac Fac Upp Machines Disabled 24 | . . . . 3 . . . 21 . Max in Single Turn 8 | . . . . 1 . . . 8 . Garrison Access 1 | . . . . 1 . . . . . Machines Repaired . | . . . . . . . . . . Machines Dismantled . | . . . . . . . . . . Machines Sabotaged . | . . . . . . . . . . Overloaded Fab Kills . | . . . . . . . . . . Hacking | -11 -10 -9 -8 -8 -8 -8 -6 -5 -5 --------- Run | Yrd Mat Mat Mat Sto Rec Scr Fac Fac Upp Machines Accessed 31 | . . 1 3 4 7 6 4 6 . Terminals 20 | . . 1 2 3 6 . 3 5 . Fabricators . | . . . . . . . . . . Repair Stations 2 | . . . 1 . . . . 1 . Recycling Units 1 | . . . . . . . 1 . . Scanalyzers . | . . . . . . . . . . Garrison Access 1 | . . . . 1 . . . . . Total Hacks 93 | . . 4 10 16 17 23 7 16 . Successful 53 | . . 1 6 9 10 23 . 4 . Failed 40 | . . 3 4 7 7 . 7 12 . Catastrophic 11 | . . 1 2 2 1 . 3 2 . Database Lockouts . | . . . . . . . . . . Manual 33 | . . 3 2 13 12 . 3 . . Terminals 60 | . . 4 7 14 16 . 5 14 . Fabricators . | . . . . . . . . . . Repair Stations 5 | . . . 3 . . . . 2 . Recycling Units 2 | . . . . . . . 2 . . Scanalyzers . | . . . . . . . . . . Garrison Access 2 | . . . . 2 . . . . . Terminal Hacks 44 | . . 1 4 6 7 23 . 3 . Record 23 | . . . 1 . . 22 . . . Robot Analysis 1 | . . . . 1 . . . . . Branch Access Points 3 | . . . 1 1 . . . 1 . Terminal Index 2 | . . . 1 . 1 . . . . Alert Level 5 | . . . 1 2 1 . . 1 . Unreport Threat 2 | . . 1 . . . . . 1 . Transport Status 1 | . . . . . 1 . . . . Registered Components 1 | . . . . 1 . . . . . Zone Layout 4 | . . . . 1 3 . . . . Derelict Proto ID Bank 1 | . . . . . . 1 . . . Release Object 1 | . . . . . 1 . . . . Fabricator Hacks . | . . . . . . . . . . Repair Station Hacks 3 | . . . 2 . . . . 1 . Scan Component 2 | . . . 1 . . . . 1 . Repair 1 | . . . 1 . . . . . . Recycling Unit Hacks . | . . . . . . . . . . Scanalyzer . | . . . . . . . . . . Garrison Access Hacks . | . . . . . . . . . . Unauthorized Hacks 6 | . . . . 3 3 . . . . Terminals 5 | . . . . 2 3 . . . . Track 1 | . . . . 1 . . . . . Botnet 4 | . . . . 1 3 . . . . Fabricators . | . . . . . . . . . . Repair Stations . | . . . . . . . . . . Recycling Units . | . . . . . . . . . . Scanalyzers . | . . . . . . . . . . Garrison Access 1 | . . . . 1 . . . . . Jam 1 | . . . . 1 . . . . . Data Cores Recovered 1 | . . . . . . . 1 . . Used . | . . . . . . . . . . Hacking Detections 24 | . . 1 3 5 5 . 4 6 . Full Trace Events 3 | . . . . 2 1 . . . . Feedback Events 1 | . . . . 1 . . . . . Corruption 1 | . . . . 1 . . . . . Feedback Blocked . | . . . . . . . . . . Robot Schematics Acquired . | . . . . . . . . . . Robots Built . | . . . . . . . . . . Authchips . | . . . . . . . . . . Time . | . . . . . . . . . . Total Robot Build Rating . | . . . . . . . . . . Part Schematics Acquired . | . . . . . . . . . . Parts Built . | . . . . . . . . . . Authchips . | . . . . . . . . . . Time . | . . . . . . . . . . Total Part Build Rating . | . . . . . . . . . . Parts Repaired 1 | . . . 1 . . . . . . Time 26 | . . . 26 . . . . . . Parts Recycled . | . . . . . . . . . . Recycled Matter . | . . . . . . . . . . Retrieved Matter . | . . . . . . . . . . Retrieved Components . | . . . . . . . . . . Parts Scanalyzed . | . . . . . . . . . . Part Schematics Acquired . | . . . . . . . . . . Parts Damaged . | . . . . . . . . . . Bothacking | -11 -10 -9 -8 -8 -8 -8 -6 -5 -5 ------------ Run | Yrd Mat Mat Mat Sto Rec Scr Fac Fac Upp Used RIF Installer . | . . . . . . . . . . Robots Hacked . | . . . . . . . . . . Non-combat . | . . . . . . . . . . Combat . | . . . . . . . . . . Robot Hacks Applied . | . . . . . . . . . . Relay Couplers Released . | . . . . . . . . . . Fabnet Peak Effective % . | . . . . . . . . . . Robots Rewired . | . . . . . . . . . . Allies Hacked 1 | . . . . . . . 1 . . Hacks Repelled . | . . . . . . . . . . Allies | -11 -10 -9 -8 -8 -8 -8 -6 -5 -5 -------- Run | Yrd Mat Mat Mat Sto Rec Scr Fac Fac Upp Total Allies 10 | . . . . 10 . . . . . Largest Group 10 | . . . . 10 10 10 10 . . Highest-Rated Group 173 | . . . . 173 173 173 173 . . Highest-Rated Ally 29 | . . . . 29 29 29 29 . . Total Orders 1 | . . . . . . . . . 1 EXPLORE 1 | . . . . . . . . . 1 Ally Attacks 127 | . . . . 28 15 . 84 . . Total Damage 1370 | . . . . 374 229 . 767 . . Kills 17 | . . . . 6 4 . 7 . . Allies Corrupted . | . . . . . . . . . . Allies Melted . | . . . . . . . . . . Intel | -11 -10 -9 -8 -8 -8 -8 -6 -5 -5 ------- Run | Yrd Mat Mat Mat Sto Rec Scr Fac Fac Upp Robot Analysis Total 1 | . . . . 1 . . . . . Derelict Logs Recovered 1 | . . . . . . . . . 1 Drone Launches 2 | . . . . . . . . . 2 Drone Recoveries . | . . . . . . . . . . Exploration | -11 -10 -9 -8 -8 -8 -8 -6 -5 -5 ------------- Run | Yrd Mat Mat Mat Sto Rec Scr Fac Fac Upp Turns Passed 11339 | 69 312 886 1129 913 1454 2558 1797 1985 236 Spaces Moved 4640 | 60 143 325 366 266 600 1118 781 619 362 Core 464 | 4 4 21 . . . . . 73 362 Treads 3394 | . . 201 . 225 600 1118 781 469 . Legs 447 | . . 2 327 41 . . . 77 . Wheels 335 | 56 139 101 39 . . . . . . Hover . | . . . . . . . . . . Flight . | . . . . . . . . . . Fastest Speed 50 | 50 100 50 190 228 228 208 208 50 50 Average Speed 205 | 96 100 196 235 260 228 225 212 224 50 Slowest Speed 1350 | 100 100 1350 260 320 228 228 235 410 50 Overloaded Moves . | . . . . . . . . . . Propulsion Burnouts . | . . . . . . . . . . Robots Hopped . | . . . . . . . . . . Cave-ins Triggered . | . . . . . . . . . . Exploration Rate (%) 40 | 4 30 34 33 38 90 81 26 24 47 Regions Visited 9 Branch Regions 4 Pre-discovered Areas 1 | . . . . . . . . . 1 Known Exits Taken 4 | . . 1 1 1 . . . 1 . Unknown Exits Taken 5 | 1 1 . . . 1 1 1 . . Scrap Searched 5 | . . . . . . 4 . . 1 Spaces Dug . | . . . . . . . . . . Terrain Destroyed 59 | . . . . 3 . . . 56 . Melee . | . . . . . . . . . . Projectile 1 | . . . . 1 . . . . . AOE 56 | . . . . . . . . 56 . Terrain Rammed . | . . . . . . . . . . Walls Destroyed . | . . . . . . . . . . Machines Disabled . | . . . . . . . . . . Actions | -11 -10 -9 -8 -8 -8 -8 -6 -5 -5 --------- Run | Yrd Mat Mat Mat Sto Rec Scr Fac Fac Upp Total 5851 | 67 273 454 546 418 682 1153 867 974 417 Wait 621 | . 99 16 84 86 73 25 31 156 51 Move 4631 | 59 142 324 365 265 599 1117 780 618 362 Hop . | . . . . . . . . . . Pick Up 63 | 2 2 14 19 4 2 2 6 12 . Fast Attach 45 | 6 . 12 6 6 . 1 2 11 1 Attach 49 | . 1 6 7 5 . 2 8 19 1 Detach 6 | . 1 1 . 1 2 . . . 1 Swap 16 | . . 3 3 2 . 1 2 5 . Drop 42 | . 1 4 12 3 2 5 4 10 1 Fire 374 | . 27 74 50 46 4 . 33 140 . Melee . | . . . . . . . . . . Ram . | . . . . . . . . . . Kick . | . . . . . . . . . . Crush 3 | . . . . . . . . 3 . Escape Stasis . | . . . . . . . . . . Rewire 1 | . . . . . . . 1 . . Trap . | . . . . . . . . . . Miscellaneous . | . . . . . . . . . . Route ------- -11/Scrapyard -10/Materials -9/Materials -8/Materials -8/Storage -8/Recycling (discovered 2 exits: *Fac / *Scr) -8/Scraptown (discovered 2 exits: *Fac x2) -6/Factory -5/Factory (discovered 2 exits: *Upp x2) -5/Upper Caves History --------- Turn | Location | Event 21 | -11/Scrapyard | Discovered new exit (range 15) 70 | -11/Scrapyard | Entered Materials 287 | -10/Materials | Discovered new exit (range 12) 310 | -10/Materials | Build established: Mutant 382 | -10/Materials | Entered another Materials area 382 | -9/Materials | Evolved 2 slots: Propulsion x1, Utility x1 410 | -9/Materials | Lost 3 parts (1p1n1w) 906 | -9/Materials | Core integrity fell below 50% 998 | -9/Materials | Lost 6 parts (2p2n2w) 1207 | -9/Materials | Discovered new exit (range 4) 1219 | -9/Materials | Core integrity fell below 20% 1231 | -9/Materials | Build established: Scavenger-Mutant 1266 | -9/Materials | Identified exit to Materials 1268 | -9/Materials | Entered another Materials area 1268 | -8/Materials | Evolved 2 slots: Propulsion x1, Utility x1 1317 | -8/Materials | Repaired Wheel 1572 | -8/Materials | Identified exit to Storage 2397 | -8/Materials | Entered Storage 2434 | -8/Storage | Identified exit to Recycling 2626 | -8/Storage | Lost 6 parts (1p4n1u) 2873 | -8/Storage | Build established: Mutant 2919 | -8/Storage | Assisted by bots powering up and referring to "LRC-V3" 3229 | -8/Storage | Build established: Commander-Mutant 3297 | -8/Storage | Used back door to open Recycling access 3310 | -8/Storage | Entered Recycling 3310 | -8/Recycling | Accompanied by 10 allies 3696 | -8/Recycling | Discovered new exit (range 12) 4677 | -8/Recycling | Scanned before Scraplab entrance 4716 | -8/Recycling | Entered Scraplab 4741 | -8/Recycling | Discovered new exit (range 3) 4764 | -8/Recycling | Entered Scraptown 4764 | -8/Scraptown | Accompanied by 10 allies 4764 | -8/Scraptown | System corruption cleaned by C-Scrubber 5252 | -8/Scraptown | Visited UFD Registry 5252 | -8/Scraptown | Registered with UFD as "Protonhead" 5284 | -8/Scraptown | Visited Cyclists 5325 | -8/Scraptown | Entered Cyclist Reading Room 5459 | -8/Scraptown | Discovered new exit (range 7) 6075 | -8/Scraptown | Visited Junk Repository 6144 | -8/Scraptown | Visited Scrapoid Research Area 6203 | -8/Scraptown | Visited Science Guys 6704 | -8/Scraptown | Visited DA-N13 Charitable Foundation 6714 | -8/Scraptown | Found DCF Scrap (31 items) 6791 | -8/Scraptown | Visited Abandonware Association 6821 | -8/Scraptown | Learned abandonware demo "HACKBUD.EXE" 6891 | -8/Scraptown | Visited Scrap Suit Storage 6916 | -8/Scraptown | Found Scrap Suit 6970 | -8/Scraptown | Visited Modified Component R&D 7160 | -8/Scraptown | Discovered new exit (range 3) 7322 | -8/Scraptown | Entered Factory 7322 | -6/Factory | Accompanied by 10 allies 7322 | -6/Factory | Evolved 4 slots: Utility x3, Weapon x1 7616 | -6/Factory | Build established: Commander-Gunner 8428 | -6/Factory | Lost 9 allies 8674 | -6/Factory | Build established: Gunner 8986 | -6/Factory | Discovered new exit (range 15) 9119 | -6/Factory | Entered another Factory area 9119 | -5/Factory | Evolved 2 slots: Utility x2 9359 | -5/Factory | Build established: Tank 9873 | -5/Factory | Identified exit to Upper Caves 10019 | -5/Factory | First assault squad dispatched 10221 | -5/Factory | Build established: Scavenger-Gunner 10270 | -5/Factory | Destroyed 7 combat bots 10483 | -5/Factory | Lost 4 parts (1n1u2w) 10651 | -5/Factory | System corruption reached 10% 10727 | -5/Factory | Lost 12 parts (1p3n5u3w) 11018 | -5/Factory | Core integrity fell below 50% 11063 | -5/Factory | Released all parts (5) 11092 | -5/Factory | Lost 12 parts (1p2n6u3w) 11098 | -5/Factory | Core integrity fell below 20% 11104 | -5/Factory | Entered Upper Caves 11137 | -5/Upper Caves | Encountered a Warlord checkpoint 11301 | -5/Upper Caves | Attracted the attention of an 0b10 checkpoint 11318 | -5/Upper Caves | Build established: Mutant 11340 | -5/Upper Caves | Destroyed by Y-64 Sentinel with Wave Gun Last Messages --------------- 11176_ Drone released from Drone Bay. 11181_ Slug penetrates Drone. 11181_ Slug penetrates Wall. 11181_ Drone destroyed. 11182_ Dropped Drone Bay. 11182_ >> Lost connection to Drone. 11194_ M/BTEH|%7Q24DZYGABN:7WDAVS<8GRCJ6D>LFBX 11209_ System corrupted: Component data lost. 11228_ 4QBRMEGLPKB5VQHARCZ|I=DT|QETQIZ NI& 11255_ System corrupted: Matter fused (-7). 11270_ YA4 3YGS=FLY,UALE5PKPYIS3 11276_ Acquired derelict log, extracted data. World map updated: -6/Factory. 11288_ System corrupted: Matter fused (-5). 11300_ Penetrated by Slug. 11301_ Y-64 Sentinel: "INTERCEPTING UNREGISTERED DERELICT." 11302_ Penetrated by Slug. 11307_ System corrupted: Heat flow error (+129). 11319_ Penetrated by Slug. 11325_ System corrupted: Energy discharge (-6). Map ----- +----------------------------------------------------+ | ???????????????????##########????????????????????? | | ???????????????????# #????????????????????? | | ???????????????????# "" #????????????????????? | | ???????????????????# """"" #????????????????????? | | ??????########?????# """" #????????????????????? | | ?????## #####?# " ##???????????????????? | | ?????# ### "" "" ##??????????????????? | | ?????# ## ##" """ ##?????????????????? | | ####?# ### ##" " "" #?????????????????? | | # ### #?## ## ##????????????????? | | ##??# # #????????????????? | | #???## ### #???????????????? | | # #????# #### #???????????????? | | # ###???## #### ## #???????????????? | | # ####?????# ##"## #?###???????????????? | | ### ##????????# ##### #???????????????????? | | ??# #????####?# "### #???????????????????? | | ### #???## ### #?# ##??????????????????? | | ##### ### #??????????????????? | | ### #??????????????????? | | ??# ##??????????????????? | | ??# ##### ##???????????????????? | | # #???## ## #####???????????????????? | | + ##???# ### ### ###?????????????????? | | # #??# ### ## ###???????????????? | | ??# #??# #?# Y @ #???????????????? | | ### ##? ?# ## ## #???????????????? | | #? ### ### #???????????????? | | ## ## ### #####?## #???????????????? | | ?# #####??### #???## ##???????????????? | | ## #??????## ???## #????????????????? | | # #?????## #??# #????????????????? | | ## ####### ????## #????????????????? | | ?## ## ####?????#####????????????????? | | ??### ###??????????????????????????????? | | ????## ##????????????????????????????????? | | ?????## #?????????????????????????????????? | | ?????## #?????????????????????????????????? | | ?????# ####??????????????????????????????? | | #??????????????????????????????? | | ##??????????????????????????????? | | ##### #"#### ##???????????????????????????????? | | ????########???##????????????????????????????????? | | ?????????????????????????????????????????????????? | | ?????????????????????????????????????????????????? | | ?????????????????????????????????????????????????? | | ?????????????????????????????????????????????????? | | ?????????????????????????????????????????????????? | | ?????????????????????????????????????????????????? | | ?????????????????????????????????????????????????? | +----------------------------------------------------+ Best States ------------- Heat Dissipation 54 Energy Generation 23 Energy Capacity 300 Matter Stores 300 Matter Capacity 300 Sight Range 20 Robot Scan Range 16 Terrain Scan Density 10 Cloak Strength 2 EM Shielding 2 Armor Coverage 825 Resistance: KI 30 Core Shielding 20 Weapon Cycling 15 Evasion (%) 50 Targeting Accuracy 16 Target Analysis 6 Recoil Reduction 4 Kinecelleration 40 Item Schematics ----------------- None Robot Schematics ------------------ None Fabricated ------------ Nothing Alien Tech Used ----------------- None Achievements -------------- None Challenges ------------ None Game ------ Seed BiometalTractorCorpse Manual? 0 Play Time 01:32:04 Cumulative 78.7 hours Start 2024.11.28 @ 21:14:59 End 2024.11.29 @ 13:29:02 Sessions 3 Manual Loads 0 Difficulty Rogue Special Mode None Game No. 67 Rogue 27 Adventurer 40 Explorer 0 Win Type - Total 4 Types 2/1/0/1/0/0/0/0/0 Lore% 41 Gallery% 51 Achievement% 55 Wizard Run 0 Options --------- Layout 1 ASCII 0 Keyboard 0 Movement Mouse Keybinds 0 Fullscreen 2 Font 20/SmallcapsGlow Map View 64x42 Zoom Use 0% Tactical HUD 1 Map Filters NONE Filters NONE Steam 1 RUN: 0025aadf-0fe9-43bf-b55f-9f3228e8b75f